bitfinex-derivatives/quotes_BTCF0:USTF0_20260315
["timestamp","ask_amount","ask_price","bid_price","bid_amount"]
[1773617899822,0.26075037,72532.0,72524.0,0.0014]
[1773617900027,0.26075037,72531.0,72524.0,0.0014]
[1773617900227,0.26075037,72530.0,72524.0,0.0014]
[1773617900426,0.26075037,72529.0,72524.0,0.0014]
[1773617900639,0.49950251,72557.0,72525.0,0.48206455]
[1773617900820,0.041347,72545.0,72530.0,0.041355]
[1773617901017,0.2604916,72544.0,72532.0,0.041354]
[1773617901328,0.2604916,72543.0,72533.0,0.0014]
[1773617901521,0.2604916,72542.0,72533.0,0.042753]
[1773617901728,0.2604916,72541.0,72533.0,0.042753]
[1773617901929,0.2604916,72540.0,72533.0,0.042753]
[1773617902124,6.7e-07,72539.0,72536.0,0.041352]
[1773617902330,0.041345,72550.0,72536.0,0.041352]
[1773617903123,0.041345,72549.0,72536.0,0.041352]
[1773617903329,0.041343,72552.0,72533.0,0.45850246]
[1773617903627,0.041344,72551.0,72538.0,0.041351]
[1773617903826,0.041344,72551.0,72539.0,0.0014]
[1773617904027,8e-05,72558.0,72539.0,0.45850246]
[1773617904326,0.04134,72557.0,72543.0,0.041348]
[1773617904530,0.041341,72557.0,72543.0,0.041348]
[1773617904723,0.49586263,72554.0,72539.0,0.0014]
[1773617904934,0.041344,72550.0,72539.0,0.0014]
[1773617905230,0.53720563,72552.0,72539.0,0.0014]
[1773617905414,0.53720563,72552.0,72530.0,0.45710246]
[1773617905415,0.53720563,72552.0,72540.0,0.0014]
[1773617905618,0.53720563,72552.0,72530.0,0.45710246]
[1773617905619,0.53720563,72552.0,72541.0,0.0014]
[1773617905826,0.53720563,72552.0,72542.0,0.0014]
[1773617906119,0.53720563,72552.0,72543.0,0.0014]
[1773617906328,0.53720563,72552.0,72544.0,0.0014]
[1773617906528,0.53720563,72552.0,72530.0,0.45710246]
[1773617907033,0.49586263,72550.0,72525.0,0.45710246]
[1773617907228,0.49586263,72555.0,72532.0,0.041354]
[1773617907535,0.49586263,72545.0,72532.0,0.041354]
[1773617907931,0.49586263,72545.0,72533.0,0.0014]
[1773617908148,0.49586263,72545.0,72512.0,0.30348]
[1773617908149,0.49586263,72545.0,72520.0,0.45710246]
[1773617908318,0.53721363,72539.0,72527.0,0.041357]
[1773617908524,0.49586263,72538.0,72528.0,0.0014]
[1773617908837,0.041353,72535.0,72529.0,0.0014]
[1773617909029,0.041352,72537.0,72530.0,0.0014]
[1773617909231,0.49586263,72543.0,72520.0,0.45710246]
[1773617909424,0.49586263,72543.0,72524.0,0.041358]
[1773617909425,0.041351,72538.0,72524.0,0.041358]
[1773617909731,0.49586263,72543.0,72521.0,0.45850246]
[1773617909732,0.041349,72542.0,72521.0,0.45850246]
[1773617910039,0.04135,72540.0,72527.0,0.041357]
[1773617910335,0.041349,72542.0,72522.0,0.0014]
[1773617910633,0.04135,72541.0,72527.0,0.041357]
[1773617911530,0.04135,72540.0,72527.0,0.041357]
[1773617912122,0.04135,72540.0,72525.0,0.041358]
[1773617912324,0.53721263,72540.0,72525.0,0.041358]
[1773617912732,0.49586263,72551.0,72523.0,0.45710246]
[1773617912935,0.041348,72543.0,72529.0,0.041356]
[1773617913124,0.041348,72543.0,72530.0,0.0014]
[1773617913440,0.041349,72542.0,72530.0,0.0014]
[1773617913734,0.53721263,72541.0,72530.0,0.0014]
[1773617914343,0.24321261,72540.0,72530.0,0.0014]
[1773617914526,0.24321261,72539.0,72530.0,0.0014]
[1773617914721,0.24321261,72538.0,72530.0,0.0014]
[1773617915029,0.24321261,72537.0,72531.0,0.041355]
[1773617915225,0.49586263,72545.0,72522.0,0.45710246]
[1773617915226,0.49586263,72545.0,72527.0,0.041357]
[1773617915428,0.49586263,72543.0,72528.0,0.0014]
[1773617915628,0.53721363,72539.0,72529.0,0.0014]
[1773617915927,0.53721463,72537.0,72513.0,0.45710246]
[1773617916239,0.49586263,72535.0,72530.0,0.001]
[1773617916443,0.24323609,72534.0,72531.0,0.0014]
[1773617917128,0.24323609,72534.0,72525.0,0.041358]
[1773617917329,0.49586263,72540.0,72526.0,0.0014]
[1773617917532,0.53721063,72544.0,72527.0,0.0014]
[1773617917730,0.041346,72547.0,72534.0,0.041353]
[1773617917938,0.49586263,72548.0,72535.0,0.0014]
[1773617918238,0.49586263,72548.0,72531.0,0.001]
[1773617918239,0.041346,72547.0,72536.0,0.0014]
[1773617919034,0.53720863,72547.0,72536.0,0.0014]
[1773617919231,0.041347,72546.0,72536.0,0.0014]
[1773617920535,0.49586263,72552.0,72536.0,0.0014]
[1773617920840,0.041344,72551.0,72538.0,0.04135]
[1773617921045,0.041344,72550.0,72538.0,0.04135]
[1773617921243,0.53720663,72550.0,72538.0,0.04135]
[1773617921744,8e-05,72553.0,72536.0,0.042752]
[1773617921745,0.53720763,72549.0,72536.0,0.042752]
[1773617921937,0.041346,72547.0,72536.0,0.0014]
[1773617922132,0.53720963,72546.0,72536.0,0.0014]
[1773617923442,0.53720963,72546.0,72537.0,0.0014]
[1773617923638,0.49586263,72544.0,72532.0,0.041354]
[1773617923839,0.49586263,72544.0,72533.0,0.0014]
[1773617924138,0.49586263,72544.0,72532.0,0.041354]
[1773617924342,0.49586263,72544.0,72533.0,0.0014]
[1773617924740,0.49586263,72544.0,72532.0,0.041354]
[1773617924947,0.49586263,72544.0,72533.0,0.0014]
[1773617925239,0.49586263,72544.0,72532.0,0.041354]
[1773617925434,0.49586263,72544.0,72533.0,0.0014]
[1773617925629,0.49586263,72544.0,72534.0,0.041353]
[1773617925952,0.49586263,72544.0,72519.0,0.45710246]
[1773617926241,0.49586263,72548.0,72521.0,0.45710246]
[1773617926830,8e-05,72553.0,72531.0,0.45710246]
[1773617927040,8e-05,72553.0,72547.0,0.041346]
[1773617927245,8e-05,72553.0,72548.0,0.042745]
[1773617927444,8e-05,72553.0,72549.0,0.0014]
[1773617927748,0.49586263,72558.0,72550.0,0.0014]
[1773617928044,0.49586263,72558.0,72551.0,0.0014]
[1773617928243,0.49586263,72564.0,72552.0,0.0014]
[1773617928437,0.49586263,72564.0,72553.0,0.042742]
[1773617928636,0.49586263,72564.0,72554.0,0.0014]
[1773617929444,0.72777455,72563.0,72554.0,0.0014]
[1773617929748,0.23191192,72562.0,72554.0,0.0014]
[1773617930549,0.72777455,72562.0,72554.0,0.0014]
[1773617930750,0.58928756,72568.0,72554.0,0.0014]
[1773617930751,0.72777455,72561.0,72554.0,0.0014]
[1773617931043,0.49586263,72559.0,72555.0,0.0014]
[1773617931247,0.23191192,72558.0,72556.0,0.0014]
[1773617931440,0.58928756,72568.0,72556.0,0.0014]
[1773617931633,8e-05,72568.0,72557.0,0.04134]
[1773617932042,0.49586263,72571.0,72556.0,0.0014]
[1773617932238,0.50873953,72576.0,72556.0,0.0014]
[1773617932434,0.46740953,72576.0,72556.0,0.46880289]
[1773617932640,0.46740953,72576.0,72565.0,0.041335]
[1773617932837,0.041328,72579.0,72542.0,0.041349]
[1773617932838,0.46740953,72581.0,72566.0,0.0014]
[1773617933038,0.46740953,72581.0,72571.0,0.041332]
[1773617933241,0.46740953,72581.0,72572.0,0.0014]
[1773617933440,0.46740953,72581.0,72573.0,0.0014]
[1773617933638,0.50873653,72581.0,72574.0,0.0014]
[1773617933838,0.50873653,72581.0,72575.0,0.0014]
[1773617934038,0.041328,72578.0,72575.0,0.0014]
[1773617934235,0.48167344,72570.0,72558.0,0.041339]
[1773617934450,0.48167344,72570.0,72560.0,0.041338]
[1773617934648,0.48167344,72570.0,72561.0,0.0014]
[1773617934837,0.48167344,72570.0,72565.0,0.00420006]
[1773617936646,0.48167344,72575.0,72565.0,0.00420006]
[1773617936947,0.52300344,72575.0,72565.0,0.00420006]
[1773617937541,0.48167344,72571.0,72566.0,0.0014]
[1773617937852,0.48167344,72571.0,72567.0,0.0014]
[1773617938153,0.48167344,72571.0,72568.0,0.0014]
[1773617938337,0.48167344,72571.0,72569.0,0.0014]
[1773617938537,0.48167344,72571.0,72560.0,0.041338]
[1773617938735,0.48167344,72571.0,72565.0,0.0014]
[1773617939038,0.48167344,72571.0,72561.0,0.0014]
[1773617940551,0.48167344,72571.0,72553.0,0.00362]
[1773617940847,0.48167344,72554.0,72551.0,0.0014]
[1773617941046,0.48167344,72554.0,72550.0,0.0014]
[1773617941248,0.48167344,72560.0,72549.0,0.0014]
[1773617941556,0.59425956,72567.0,72549.0,0.0014]
[1773617941557,0.48167344,72566.0,72553.0,0.041342]
[1773617941849,0.0014,72579.0,72526.0,0.48372174]
[1773617941850,0.0014,72568.0,72526.0,0.48372174]
[1773617942044,0.48167344,72552.0,72537.0,0.041351]
[1773617942246,0.0014,72567.0,72538.0,0.0014]
[1773617942247,0.48167344,72546.0,72538.0,0.0014]
[1773617942447,0.48167344,72544.0,72532.0,0.041354]
[1773617942641,0.48167344,72544.0,72533.0,0.042753]
[1773617942848,0.48167344,72544.0,72518.0,0.48372174]
[1773617942849,0.48167344,72544.0,72534.0,0.042753]
[1773617943041,0.48167344,72544.0,72535.0,0.0014]
[1773617943251,0.48167344,72553.0,72535.0,0.0014]
[1773617943438,0.48167344,72551.0,72540.0,0.04135]
[1773617943638,0.52302044,72546.0,72516.0,0.48372174]
[1773617943846,0.48167344,72546.0,72517.0,0.48512174]
[1773617944044,0.48167344,72546.0,72537.0,0.041351]
[1773617944246,0.48167344,72546.0,72538.0,0.0014]
[1773617944442,0.48167344,72546.0,72539.0,0.0014]
[1773617944642,0.48167344,72546.0,72540.0,0.0014]
[1773617945350,0.48529344,72546.0,72540.0,0.0014]
[1773617946356,0.48167344,72545.0,72513.0,0.48717174]
[1773617946545,0.48167344,72542.0,72530.0,0.041355]
[1773617946746,0.48167344,72542.0,72531.0,0.0014]
[1773617948554,0.48167344,72539.0,72532.0,0.0014]
[1773617948756,0.48167344,72539.0,72533.0,0.0014]
[1773617948956,0.48167344,72539.0,72514.0,0.48372174]
[1773617948957,0.48167344,72539.0,72534.0,0.0014]
[1773617949250,0.48167344,72539.0,72535.0,0.0014]
[1773617949441,0.48167344,72539.0,72536.0,0.0014]
[1773617950452,0.48167344,72539.0,72529.0,0.041356]
[1773617950650,0.48167344,72539.0,72530.0,0.0014]
[1773617951959,0.0014,72554.0,72530.0,0.0014]
[1773617951960,0.52301144,72562.0,72550.0,0.041344]
[1773617952255,0.48167344,72560.0,72551.0,0.0014]
[1773617952452,0.19820048,72559.0,72552.0,0.0014]
[1773617952851,0.48167344,72560.0,72554.0,0.041342]
[1773617953057,0.48167344,72564.0,72552.0,0.042743]
[1773617953245,0.00353,72557.0,72552.0,0.0014]
[1773617954158,0.48167344,72561.0,72552.0,0.0014]
[1773617954362,0.48167344,72561.0,72552.0,0.042743]
[1773617954553,0.0014,72572.0,72552.0,0.042743]
[1773617954554,0.48167344,72568.0,72559.0,0.041339]
[1773617954755,0.19832164,72567.0,72560.0,0.0014]
[1773617955062,0.48167344,72568.0,72561.0,0.0014]
[1773617956350,0.19840891,72567.0,72561.0,0.0014]
[1773617956552,0.19840927,72566.0,72561.0,0.0014]
[1773617956751,0.48167344,72565.0,72561.0,0.0014]
[1773617956961,0.48167344,72565.0,72554.0,0.041342]
[1773617957161,0.48167344,72565.0,72555.0,0.0014]
[1773617958661,0.48167344,72565.0,72556.0,0.0014]
[1773617961358,0.48167344,72565.0,72554.0,0.041342]
[1773617961554,0.0014,72575.0,72550.0,0.041344]
[1773617961555,0.041336,72564.0,72550.0,0.041344]
[1773617961758,0.6802682,72563.0,72551.0,0.0014]
[1773617961959,0.48167344,72562.0,72552.0,0.0014]
[1773617962155,0.48167344,72562.0,72536.0,0.51009881]
[1773617962156,0.48167344,72562.0,72553.0,0.0014]
[1773617962364,0.48167344,72562.0,72538.0,0.46874681]
[1773617962563,0.48167344,72562.0,72552.0,0.041343]
[1773617962765,0.48167344,72562.0,72553.0,0.0014]
[1773617962966,0.48167344,72562.0,72553.0,0.041342]
[1773617963169,0.48167344,72562.0,72554.0,0.0014]
[1773617963356,0.48167344,72562.0,72555.0,0.0014]
[1773617963556,0.48167344,72562.0,72538.0,0.46874681]
[1773617963957,0.48167344,72562.0,72539.0,0.0014]
[1773617964168,0.48167344,72562.0,72540.0,0.0014]
[1773617964372,0.48167344,72562.0,72553.0,0.041342]
[1773617964670,0.48167344,72562.0,72554.0,0.0014]
[1773617964867,0.48167344,72562.0,72555.0,0.0014]
[1773617965168,0.48167344,72562.0,72538.0,0.46874681]
[1773617965360,0.48167344,72562.0,72539.0,0.0014]
[1773617965567,0.48167344,72562.0,72539.0,0.47014681]
[1773617965764,0.48167344,72562.0,72553.0,0.041342]
[1773617965970,0.48167344,72562.0,72554.0,0.0014]
[1773617966269,0.48167344,72562.0,72555.0,0.0014]
[1773617966460,0.48167344,72562.0,72556.0,0.0014]
[1773617966659,0.0014,72575.0,72558.0,0.041339]
[1773617966860,0.0014,72575.0,72548.0,0.46874681]
[1773617966861,0.041332,72572.0,72559.0,0.042739]
[1773617967063,0.041332,72572.0,72536.0,0.041352]
[1773617967064,0.47938624,72570.0,72560.0,0.042738]
[1773617967260,0.19341017,72569.0,72561.0,0.0014]
[1773617967467,0.19341017,72568.0,72561.0,0.0014]
[1773617967665,0.19341017,72567.0,72561.0,0.0014]
[1773617967862,0.47938624,72570.0,72561.0,0.0014]
[1773617969864,0.52072124,72567.0,72547.0,0.00353]
[1773617970170,0.47938624,72567.0,72555.0,0.041341]
[1773617970370,0.47938624,72567.0,72556.0,0.0014]
[1773617970568,0.47938624,72567.0,72557.0,0.0014]
[1773617970770,0.47938624,72567.0,72558.0,0.0014]
[1773617970968,0.47938624,72567.0,72559.0,0.041338]
[1773617971272,0.47938624,72567.0,72558.0,0.0014]
[1773617971565,0.52072124,72567.0,72547.0,0.00353]
[1773617971773,0.52072124,72567.0,72548.0,0.0014]
[1773617972367,0.52072124,72567.0,72554.0,0.041342]
[1773617972667,0.041335,72566.0,72552.0,0.041343]
[1773617972870,0.47938624,72565.0,72553.0,0.0014]
[1773617973367,0.47938624,72565.0,72556.0,0.04134]
[1773617973569,0.47938624,72565.0,72557.0,0.0014]
[1773617974267,0.47938624,72565.0,72547.0,0.00353]
[1773617974465,0.47938624,72562.0,72551.0,0.041343]
[1773617974667,0.47938624,72562.0,72552.0,0.0014]
[1773617974870,0.52072024,72569.0,72553.0,0.0014]
[1773617975175,0.47938624,72567.0,72555.0,0.041341]
[1773617975371,0.47938624,72565.0,72556.0,0.0014]
[1773617975572,0.47938624,72565.0,72557.0,0.0014]
[1773617975880,0.47938624,72565.0,72555.0,0.041341]
[1773617976182,0.47938624,72565.0,72556.0,0.0014]
[1773617977174,0.47938624,72565.0,72553.0,0.041342]
[1773617977362,0.47938624,72563.0,72554.0,0.0014]
[1773617977561,0.47938624,72563.0,72555.0,0.0014]
[1773617977768,0.47938624,72563.0,72553.0,0.041342]
[1773617977972,0.47938624,72563.0,72554.0,0.0014]
[1773617979479,0.47938624,72563.0,72555.0,0.0014]
[1773617979776,0.47938624,72563.0,72556.0,0.0014]
[1773617979975,0.47938624,72563.0,72557.0,0.0014]
[1773617980173,0.19391282,72562.0,72553.0,0.041342]
[1773617980384,0.47938624,72563.0,72554.0,0.0014]
[1773617980574,0.47938624,72563.0,72547.0,0.00353]
[1773617980575,0.67330652,72562.0,72547.0,0.00353]
[1773617980774,0.47938624,72561.0,72548.0,0.0014]
[1773617981170,0.041336,72565.0,72547.0,0.00353]
[1773617981171,0.67349633,72560.0,72547.0,0.00353]
[1773617981371,0.47938624,72551.0,72529.0,0.46874681]
[1773617981577,0.47938624,72551.0,72530.0,0.0014]
[1773617981786,0.47938624,72551.0,72531.0,0.0014]
[1773617983599,0.47938624,72551.0,72543.0,0.041348]
[1773617983878,0.47938624,72551.0,72544.0,0.0014]
[1773617984093,0.47938624,72551.0,72545.0,0.0014]
[1773617984885,0.47938624,72551.0,72546.0,0.0014]
[1773617985085,0.47938624,72551.0,72547.0,0.0014]
[1773617985285,0.47938624,72547.0,72535.0,0.041352]
[1773617985481,0.19409152,72546.0,72536.0,0.0014]
[1773617985674,0.52073224,72547.0,72537.0,0.0014]
[1773617985984,0.47938624,72545.0,72537.0,0.0014]
[1773617987485,0.47938624,72545.0,72537.0,0.0024]
[1773617987783,0.00362,72555.0,72537.0,0.0024]
[1773617987972,0.19395331,72554.0,72537.0,0.0024]
[1773617988174,0.19395331,72553.0,72537.0,0.0024]
[1773617988378,0.19395331,72552.0,72537.0,0.0024]
[1773617988685,0.47938624,72550.0,72537.0,0.001]
[1773617988987,0.47938624,72550.0,72538.0,0.0014]
[1773617989189,0.47938624,72550.0,72539.0,0.0014]
[1773617989483,0.47938624,72550.0,72540.0,0.0014]
[1773617989484,0.52073024,72550.0,72540.0,0.0014]
[1773617990391,0.041345,72549.0,72540.0,0.0014]
[1773617990695,0.47938624,72548.0,72540.0,0.0014]
[1773617990885,0.041346,72547.0,72540.0,0.0014]
[1773617991088,0.47938624,72546.0,72540.0,0.0014]
[1773617992287,0.46128223,72554.0,72544.0,0.041347]
[1773617992582,0.46128223,72552.0,72540.0,0.04275]
[1773617992776,0.46128223,72550.0,72540.0,0.04275]
[1773617993976,0.46128223,72550.0,72541.0,0.041349]
[1773617995677,0.48753282,72555.0,72544.0,0.041347]
[1773617995876,0.19377878,72554.0,72544.0,0.041347]
[1773617996077,0.19377878,72553.0,72544.0,0.041347]
[1773617996277,0.48753282,72555.0,72540.0,0.0014]
[1773617996278,0.19377878,72552.0,72540.0,0.0014]
[1773617996478,0.041322,72590.0,72549.0,0.041344]
[1773617996479,0.48391282,72560.0,72549.0,0.041344]
[1773617996678,0.52525182,72560.0,72549.0,0.041344]
[1773617996885,0.52525182,72560.0,72550.0,0.0014]
[1773617997080,0.48391282,72560.0,72550.0,0.0014]
[1773617997287,0.40847317,72581.0,72550.0,0.0014]
[1773617997486,0.52524682,72569.0,72556.0,0.04134]
[1773617997987,0.52524682,72569.0,72550.0,0.0014]
[1773617997988,0.48391282,72569.0,72550.0,0.0014]
[1773617998385,0.48391282,72569.0,72562.0,0.041337]
[1773617998590,0.48391282,72569.0,72563.0,0.0014]
[1773617998791,0.48391282,72574.0,72563.0,0.0014]
[1773617998992,0.041331,72573.0,72563.0,0.0014]
[1773617999183,0.48391282,72572.0,72563.0,0.0014]
[1773618000095,0.48391282,72576.0,72563.0,0.0014]
[1773618000389,0.48391282,72584.0,72537.0,0.45932509]
[1773618000594,0.48391282,72555.0,72542.0,0.041348]
[1773618000893,0.48391282,72551.0,72543.0,0.0014]
[1773618001094,0.48391282,72551.0,72544.0,0.0014]
[1773618001290,0.48391282,72551.0,72545.0,0.0014]
[1773618001690,0.52525682,72551.0,72546.0,0.0014]
[1773618001893,0.48391282,72549.0,72526.0,0.45932509]
[1773618002090,0.48391282,72549.0,72527.0,0.46072509]
[1773618002289,0.041342,72553.0,72516.0,0.22653254]
[1773618002290,0.041338,72561.0,72528.0,0.0014]
[1773618002487,0.52525282,72557.0,72542.0,0.041348]
[1773618002689,0.48391282,72554.0,72543.0,0.0014]
[1773618002885,0.48391282,72554.0,72540.0,0.04135]
[1773618003189,0.48391282,72554.0,72541.0,0.042749]
[1773618003388,0.48391282,72554.0,72541.0,0.041349]
[1773618003587,0.48391282,72554.0,72542.0,0.0014]
[1773618003989,0.48391282,72554.0,72542.0,0.042748]
[1773618004495,0.52525282,72558.0,72542.0,0.0014]
[1773618004694,0.58131257,72568.0,72542.0,0.0014]
[1773618004890,0.52524882,72565.0,72542.0,0.46072509]
[1773618005194,0.48391282,72565.0,72542.0,0.46072509]
[1773618005495,0.48391282,72570.0,72555.0,0.041341]
[1773618005705,0.48391282,72570.0,72556.0,0.0014]
[1773618005909,0.041334,72569.0,72556.0,0.0014]
[1773618006085,0.0014,72574.0,72546.0,0.45932509]
[1773618006086,0.52524682,72568.0,72553.0,0.041342]
[1773618006281,0.52524682,72568.0,72554.0,0.0014]
[1773618006497,0.52524682,72568.0,72555.0,0.0014]
[1773618006790,0.48391282,72561.0,72528.0,0.45932509]
[1773618006990,0.48391282,72557.0,72547.0,0.041345]
[1773618007194,0.48391282,72557.0,72548.0,0.0014]
[1773618008100,0.48391282,72557.0,72530.0,0.45932509]
[1773618008286,0.48391282,72557.0,72532.0,0.45932509]
[1773618008682,0.48391282,72557.0,72533.0,0.0014]
[1773618008895,0.48391282,72557.0,72544.0,0.041347]
[1773618009095,0.48391282,72557.0,72545.0,0.0014]
[1773618009297,0.48391282,72557.0,72546.0,0.0014]
[1773618009690,0.48391282,72557.0,72532.0,0.45932509]
[1773618009895,0.48391282,72557.0,72533.0,0.0014]
[1773618010199,0.48391282,72555.0,72544.0,0.041347]
[1773618010501,0.48391282,72555.0,72545.0,0.042747]
[1773618010799,0.48391282,72555.0,72546.0,0.0014]
[1773618011804,0.52525182,72560.0,72547.0,0.041345]
[1773618012102,0.00068841,72631.0,72580.0,0.275514]
[1773618012403,0.74307455,72635.0,72613.0,0.16439508]
[1773618012600,0.58131257,72648.0,72614.0,0.31012251]
[1773618012601,0.47391282,72634.0,72614.0,0.31012251]
[1773618012898,0.47391282,72634.0,72615.0,0.31012251]
[1773618013101,1.22698737,72633.0,72616.0,0.47451759]
[1773618013295,0.48391282,72639.0,72620.0,0.041304]
[1773618013496,0.48391282,72639.0,72615.0,0.62372017]
[1773618013497,0.48391282,72639.0,72621.0,0.31012251]
[1773618013695,0.48391282,72637.0,72622.0,0.31152251]
[1773618013998,0.48391282,72637.0,72623.0,0.31012251]
[1773618014200,0.48391282,72635.0,72624.0,0.31012251]
[1773618014400,0.48391282,72635.0,72625.0,0.31012251]
[1773618014601,0.48391282,72635.0,72626.0,0.31012251]
[1773618014804,0.48391282,72635.0,72622.0,0.0014]
[1773618015104,0.74307455,72634.0,72622.0,0.0014]
[1773618015404,0.041299,72630.0,72622.0,0.0014]
[1773618015606,0.48391282,72629.0,72622.0,0.0014]
[1773618016106,0.48391282,72635.0,72622.0,0.0014]
[1773618016608,0.041298,72632.0,72622.0,0.0014]
[1773618016790,0.48391282,72619.0,72605.0,0.00362]
[1773618016991,0.48391282,72619.0,72606.0,0.041312]
[1773618017193,0.48391282,72625.0,72607.0,0.0014]
[1773618017413,0.48391282,72624.0,72607.0,0.0014]
[1773618017794,0.48391282,72624.0,72608.0,0.041311]
[1773618018203,0.52521482,72624.0,72608.0,0.041311]
[1773618019603,0.48391282,72624.0,72608.0,0.041311]
[1773618020714,0.58131257,72629.0,72581.0,0.16439508]
[1773618020715,0.48391282,72603.0,72581.0,0.16439508]
[1773618021011,0.48391282,72603.0,72588.0,0.041322]
[1773618021306,0.48391282,72601.0,72589.0,0.0014]
[1773618021610,0.48391282,72601.0,72590.0,0.041321]
[1773618021805,0.48391282,72601.0,72592.0,0.04132]
[1773618022001,0.48391282,72601.0,72595.0,0.16439508]
[1773618022306,0.47013284,72599.0,72586.0,0.042723]
[1773618022498,0.47013284,72599.0,72587.0,0.0014]
[1773618023303,0.47013284,72597.0,72588.0,0.0014]
[1773618023499,0.47013284,72595.0,72577.0,0.0014]
[1773618023705,0.47013284,72597.0,72577.0,0.0014]
[1773618024007,0.47013284,72594.0,72569.0,0.3032]
[1773618024208,0.47013284,72594.0,72580.0,0.041327]
[1773618024413,0.47013284,72594.0,72582.0,0.0014]
[1773618025711,0.47013284,72594.0,72581.0,0.0014]
[1773618025904,0.47013284,72592.0,72581.0,0.042726]
[1773618026410,0.47013284,72592.0,72582.0,0.0014]
[1773618026706,0.47013284,72592.0,72583.0,0.31011889]
[1773618026910,0.47013284,72592.0,72584.0,0.31011889]
[1773618027209,0.47013284,72592.0,72585.0,0.31011889]
[1773618027507,0.47013284,72592.0,72586.0,0.31011889]
[1773618027708,0.47013284,72592.0,72587.0,0.31011889]
[1773618028011,0.47013284,72590.0,72588.0,0.31011889]
[1773618028217,0.18738435,72590.0,72589.0,0.31011889]
[1773618028808,0.18738435,72590.0,72589.0,0.30185106]
[1773618029112,0.51144984,72598.0,72589.0,0.30185106]
[1773618029408,0.47013284,72595.0,72583.0,0.041325]
[1773618029908,0.47013284,72595.0,72582.0,0.00966783]
[1773618030211,0.74167455,72594.0,72582.0,0.00966783]
[1773618031499,0.30312,72638.0,72582.0,0.00966783]
[1773618031697,0.47013284,72604.0,72581.0,0.50073298]
[1773618031901,0.47013284,72602.0,72588.0,0.041322]
[1773618032111,0.51299078,72602.0,72589.0,0.0014]
[1773618033913,0.47013284,72619.0,72590.0,0.49864409]
[1773618034214,0.47013284,72618.0,72606.0,0.041312]
[1773618034410,0.51240341,72618.0,72606.0,0.041312]
[1773618035206,0.51240341,72618.0,72605.0,0.0014]
[1773618035818,0.51240341,72618.0,72605.0,0.042712]
[1773618036017,0.55370841,72618.0,72605.0,0.042712]
[1773618036404,0.51240341,72618.0,72605.0,0.0014]
[1773618036707,0.51240341,72618.0,72607.0,0.041312]
[1773618036916,0.47013284,72618.0,72607.0,0.041312]
[1773618037302,0.47013284,72618.0,72608.0,0.041311]
[1773618037504,0.041302,72625.0,72612.0,0.041309]
[1773618037716,0.1674005,72625.0,72612.0,0.042709]
[1773618037918,0.47013284,72624.0,72612.0,0.042709]
[1773618038106,0.56396912,72624.0,72612.0,0.042709]
[1773618038707,0.42692412,72624.0,72612.0,0.0014]
[1773618038912,0.47013284,72623.0,72613.0,0.041308]
[1773618039215,0.56915274,72623.0,72613.0,0.041308]
[1773618039421,0.56915274,72623.0,72612.0,0.01106783]
[1773618039422,7.4e-07,72623.0,72612.0,0.01106783]
[1773618039715,0.33975294,72623.0,72612.0,0.01106783]
[1773618040016,0.32779884,72623.0,72612.0,0.01106783]
[1773618040216,0.47013284,72627.0,72612.0,0.01106783]
[1773618040437,0.82829098,72627.0,72613.0,0.041308]
[1773618040613,0.47013284,72626.0,72614.0,0.30998954]
[1773618040812,0.78590245,72626.0,72615.0,0.30998954]
[1773618041115,0.47013284,72625.0,72616.0,0.18084147]
[1773618041421,0.01442763,72625.0,72615.0,0.0014]
[1773618041717,0.041301,72625.0,72615.0,0.0014]
[1773618042303,0.56282047,72625.0,72615.0,0.0014]
[1773618042608,0.47013284,72633.0,72615.0,0.0014]
[1773618042808,0.47013284,72632.0,72615.0,0.0014]
[1773618043014,0.041299,72629.0,72616.0,0.041306]
[1773618043234,0.88326761,72629.0,72616.0,0.041306]
[1773618043412,0.02046764,72629.0,72617.0,0.041306]
[1773618043906,6.4e-07,72629.0,72624.0,0.041302]
[1773618044108,0.00362,72635.0,72626.0,0.49864409]
[1773618044318,0.041277,72668.0,72632.0,0.041297]
[1773618044319,0.47013284,72647.0,72632.0,0.041297]
[1773618044519,0.46379259,72647.0,72627.0,0.0014]
[1773618044711,0.13536751,72647.0,72639.0,0.041293]
[1773618044910,0.13536751,72647.0,72640.0,0.0014]
[1773618045307,0.47013284,72646.0,72626.0,0.0014]
[1773618045506,0.47013284,72645.0,72634.0,0.00826087]
[1773618045709,0.79447715,72645.0,72635.0,0.0014]
[1773618046112,0.32434431,72645.0,72635.0,0.042696]
[1773618046318,0.47013284,72644.0,72614.0,0.49864409]
[1773618046524,0.3820907,72644.0,72613.0,0.49864409]
[1773618046821,0.05203481,72644.0,72633.0,0.49864409]
[1773618047024,0.00362,72649.0,72634.0,0.0014]
[1773618047322,0.29347387,72649.0,72638.0,0.041294]
[1773618047518,0.76360671,72649.0,72639.0,0.0014]
[1773618047714,0.76360671,72649.0,72640.0,0.042693]
[1773618047715,0.00362,72649.0,72640.0,0.042693]
[1773618048114,0.00362,72649.0,72641.0,0.00826087]
[1773618048320,0.041285,72655.0,72641.0,0.00826087]
[1773618048615,0.041286,72652.0,72641.0,0.00826087]
[1773618048810,0.50243561,72652.0,72641.0,0.00826087]
[1773618051127,0.46114961,72652.0,72641.0,0.04955287]
[1773618053520,0.46114961,72652.0,72641.0,0.00826087]
[1773618053825,0.46114961,72652.0,72643.0,0.041291]
[1773618055127,0.46114961,72652.0,72645.0,0.041289]
[1773618055326,0.46114961,72652.0,72640.0,0.0014]
[1773618055327,9.9e-07,72652.0,72648.0,0.041288]
[1773618055527,0.041277,72669.0,72650.0,0.041287]
[1773618055829,0.54591607,72663.0,72656.0,0.041283]
[1773618056231,0.54591607,72663.0,72657.0,0.00826087]
[1773618057034,0.54591607,72663.0,72658.0,0.0014]
[1773618057340,0.54591607,72663.0,72654.0,0.041284]
[1773618057535,0.48598493,72662.0,72655.0,0.0014]
[1773618057735,0.70638869,72662.0,72656.0,0.0014]
[1773618058038,0.22040376,72662.0,72657.0,0.0014]
[1773618058249,0.48598493,72677.0,72657.0,0.0014]
[1773618058434,0.33110932,72677.0,72665.0,0.041278]
[1773618058633,0.33110932,72677.0,72666.0,0.041278]
[1773618058935,0.33110932,72677.0,72667.0,0.0014]
[1773618059332,0.33110932,72677.0,72635.0,0.24589702]
[1773618059333,0.48598493,72676.0,72637.0,0.24589702]
[1773618059629,0.33110932,72677.0,72637.0,0.24589702]